{"text_format":"1","workbook":"xlsx","n_sheets":9,"sheets":["Malus domestica","Malus floribunda","Pyrus communis","Prunus domestica","Prunus cerasus","Castanea sativa","Juglans regia","Fragaria ananassa","Ribes sp."],"not_rendered":{"charts":0,"images":27,"macros":1,"external_links":1,"defined_names":10,"comments":0,"pivot_tables":0},"unopened":[],"bounds":{"document_bytes":16777216,"sheet_cells":100000,"rows_first":2000,"rows_last":500,"rows_between":2000,"halvings":0,"cell_chars":16384,"cell_head_chars":4096},"cells_cut":0,"cells_raw":0,"read":"whole","date_system":"1900"}

{"sheet":"Malus domestica","index":0,"n_rows":171,"n_cols":27,"rows_kept":171,"cut":false,"hidden":false,"merged":[]}
["Variety Denomination"]
[]
[]
[]
["Unique identifier","Member States","Genus Name","Species Name","Species Code","Species Common name","Synonym common name","Variety Denomination","Synonym Variety Denomination","Variety Denomination Status","Description","Breeder Reference","Registration Application ","Application status","Kolonne1","MS reference 1","Kolonne2","Kolonne3","Kolonne4","Kolonne5","Kolonne6","Plant Variety Right","Kolonne7","Kolonne8","Kolonne9","Genetically Modified Variety","Breeder"]
[{"$f":"YEAR(NOW()) &  \"/\" &  B6 & \"/\" & E6 & \"/\" & IF(LEN(AF6) >0,UPPER(AF6),UPPER(H6)) & \"/\" & P6","v":"2017/DK/MALUS_DOM/ANNAS ÆBLE/Annas Æble"},"DK","Malus","domestica","MALUS_DOM","Almindelig Æble",null,"Annas Æble",null,"Approved","Officialy Recognised description",null,"Complete Application","Accepted",null,"Annas Æble",null,null,null,null,null,"N/A",null,null,null,"NO"]
[{"$f":"YEAR(NOW()) &  \"/\" &  B7 & \"/\" & E7 & \"/\" & IF(LEN(AF7) >0,UPPER(AF7),UPPER(H7)) & \"/\" & P7","v":"2017/DK/MALUS_DOM/ANTONIUS/Antonius"},"DK","Malus","domestica","MALUS_DOM","Almindelig Æble",null,"Antonius",null,"Approved","Officialy Recognised description",null,"Complete Application","Accepted",null,"Antonius",null,null,null,null,null,"N/A",null,null,null,"NO"]
["2017/DK/MALUS_DOM/ARRESKOV/Arreskov","DK","Malus","domestica","MALUS_DOM","Almindelig Æble",null,"Arreskov",null,"Approved","Officialy Recognised description",null,"Complete Application","Accepted",null,"Arreskov",null,null,null,null,null,"N/A",null,null,null,"NO"]
["2017/DK/MALUS_DOM/AUNHUSÆBLE/Aunhusæble","DK","Malus","domestica","MALUS_DOM","Almindelig Æble",null,"Aunhusæble",null,"Approved","Officialy Recognised description",null,"Complete Application","Accepted",null,"Aunhusæble",null,null,null,null,null,"N/A",null,null,null,"NO"]
["2017/DK/MALUS_DOM/BARRITSKOV/Barritskov","DK","Malus","domestica","MALUS_DOM","Almindelig Æble",null,"Barritskov",null,"Approved","Officialy Recognised description",null,"Complete Application","Accepted",null,"Barritskov",null,null,null,null,null,"N/A",null,null,null,"NO"]
["2017/DK/MALUS_DOM/BASNÆS/Basnæs","DK","Malus","domestica","MALUS_DOM","Almindelig Æble",null,"Basnæs",null,"Approved","Officialy Recognised description",null,"Complete Application","Accepted",null,"Basnæs",null,null,null,null,null,"N/A",null,null,null,"NO"]
["2017/DK/MALUS_DOM/BLANGSTEDGÅRD 156/Blangstedgård 156","DK","Malus","domestica","MALUS_DOM","Almindelig Æble",null,"Blangstedgård 156",null,"Approved","Officialy Recognised description",null,"Complete Application","Accepted",null,"Blangstedgård 156",null,null,null,null,null,"N/A",null,null,null,"NO"]
["2017/DK/MALUS_DOM/BLANKHOLM/Blankholm","DK","Malus","domestica","MALUS_DOM","Almindelig Æble",null,"Blankholm",null,"Approved","Officialy Recognised description",null,"Complete Application","Accepted",null,"Blankholm",null,null,null,null,null,"N/A",null,null,null,"NO"]
["2017/DK/MALUS_DOM/BODIL NEERGÅRD/Bodil Neergård","DK","Malus","domestica","MALUS_DOM","Almindelig Æble",null,"Bodil Neergård",null,"Approved","Officialy Recognised description",null,"Complete Application","Accepted",null,"Bodil Neergård",null,null,null,null,null,"N/A",null,null,null,"NO"]
["2017/DK/MALUS_DOM/BODILS ÆBLE/Bodils Æble","DK","Malus","domestica","MALUS_DOM","Almindelig Æble",null,"Bodils Æble",null,"Approved","Officialy Recognised description",null,"Complete Application","Accepted",null,"Bodils Æble",null,null,null,null,null,"N/A",null,null,null,"NO"]
["2017/DK/MALUS_DOM/BREDSTEDÆBLE/Bredstedæble","DK","Malus","domestica","MALUS_DOM","Almindelig Æble",null,"Bredstedæble",null,"Approved","Officialy Recognised description",null,"Complete Application","Accepted",null,"Bredstedæble",null,null,null,null,null,"N/A",null,null,null,"NO"]
["2017/DK/MALUS_DOM/BROHOLM/Broholm","DK","Malus","domestica","MALUS_DOM","Almindelig Æble",null,"Broholm",null,"Approved","Officialy Recognised description",null,"Complete Application","Accepted",null,"Broholm",null,null,null,null,null,"N/A",null,null,null,"NO"]
["2017/DK/MALUS_DOM/BROSTRØMS GULDREINETTE/Brostrøms guldreinette","DK","Malus","domestica","MALUS_DOM","Almindelig Æble",null,"Brostrøms guldreinette",null,"Approved","Officialy Recognised description",null,"Complete Application","Accepted",null,"Brostrøms guldreinette",null,null,null,null,null,"N/A",null,null,null,"NO"]
["2017/DK/MALUS_DOM/BRÆNDEKILDE/Brændekilde","DK","Malus","domestica","MALUS_DOM","Almindelig Æble",null,"Brændekilde",null,"Approved","Officialy Recognised description",null,"Complete Application","Accepted",null,"Brændekilde",null,null,null,null,null,"N/A",null,null,null,"NO"]
["2017/DK/MALUS_DOM/BRØNDÆBLE/Brøndæble","DK","Malus","domestica","MALUS_DOM","Almindelig Æble",null,"Brøndæble",null,"Approved","Officialy Recognised description",null,"Complete Application","Accepted",null,"Brøndæble",null,null,null,null,null,"N/A",null,null,null,"NO"]
["2017/DK/MALUS_DOM/BØDKER/Bødker","DK","Malus","domestica","MALUS_DOM","Almindelig Æble",null,"Bødker",null,"Approved","Officialy Recognised description",null,"Complete Application","Accepted",null,"Bødker",null,null,null,null,null,"N/A",null,null,null,"NO"]
["2017/DK/MALUS_DOM/BØGHS CITRONÆBLE/Bøghs citronæble","DK","Malus","domestica","MALUS_DOM","Almindelig Æble",null,"Bøghs citronæble",null,"Approved","Officialy Recognised description",null,"Complete Application","Accepted",null,"Bøghs citronæble",null,null,null,null,null,"N/A",null,null,null,"NO"]
["2017/DK/MALUS_DOM/COMTESSE JOHANNES ÆBLE/Comtesse Johannes æble","DK","Malus","domestica","MALUS_DOM","Almindelig Æble",null,"Comtesse Johannes æble",null,"Approved","Officialy Recognised description",null,"Complete Application","Accepted",null,"Comtesse Johannes æble",null,null,null,null,null,"N/A",null,null,null,"NO"]
["2017/DK/MALUS_DOM/DANSK ROSENHÆGER/Dansk Rosenhæger","DK","Malus","domestica","MALUS_DOM","Almindelig Æble",null,"Dansk Rosenhæger",null,"Approved","Officialy Recognised description",null,"Complete Application","Accepted",null,"Dansk Rosenhæger",null,null,null,null,null,"N/A",null,null,null,"NO"]
["2017/DK/MALUS_DOM/DAUGLYKKE/Dauglykke","DK","Malus","domestica","MALUS_DOM","Almindelig Æble",null,"Dauglykke",null,"Approved","Officialy Recognised description",null,"Complete Application","Accepted",null,"Dauglykke",null,null,null,null,null,"N/A",null,null,null,"NO"]
["2017/DK/MALUS_DOM/DEGNEÆBLE /Degneæble ","DK","Malus","domestica","MALUS_DOM","Almindelig Æble",null,"Degneæble ",null,"Approved","Officialy Recognised description",null,"Complete Application","Accepted",null,"Degneæble ",null,null,null,null,null,"N/A",null,null,null,"NO"]
["2017/DK/MALUS_DOM/DITTE VIUFF/Ditte Viuff","DK","Malus","domestica","MALUS_DOM","Almindelig Æble",null,"Ditte Viuff",null,"Approved","Officialy Recognised description",null,"Complete Application","Accepted",null,"Ditte Viuff",null,null,null,null,null,"N/A",null,null,null,"NO"]
["2017/DK/MALUS_DOM/DREJÆBLE/Drejæble","DK","Malus","domestica","MALUS_DOM","Almindelig Æble",null,"Drejæble",null,"Approved","Officialy Recognised description",null,"Complete Application","Accepted",null,"Drejæble",null,null,null,null,null,"N/A",null,null,null,"NO"]
["2017/DK/MALUS_DOM/DRONNING LOUISE/Dronning Louise","DK","Malus","domestica","MALUS_DOM","Almindelig Æble",null,"Dronning Louise",null,"Approved","Officialy Recognised description",null,"Complete Application","Accepted",null,"Dronning Louise",null,null,null,null,null,"N/A",null,null,null,"NO"]
["2017/DK/MALUS_DOM/EJBYÆBLE/Ejbyæble","DK","Malus","domestica","MALUS_DOM","Almindelig Æble",null,"Ejbyæble",null,"Approved","Officialy Recognised description",null,"Complete Application","Accepted",null,"Ejbyæble",null,null,null,null,null,"N/A",null,null,null,"NO"]
["2017/DK/MALUS_DOM/ELMELUND/Elmelund","DK","Malus","domestica","MALUS_DOM","Almindelig Æble",null,"Elmelund",null,"Approved","Officialy Recognised description",null,"Complete Application","Accepted",null,"Elmelund",null,null,null,null,null,"N/A",null,null,null,"NO"]
["2017/DK/MALUS_DOM/ELSE LINDSTOW/Else Lindstow","DK","Malus","domestica","MALUS_DOM","Almindelig Æble",null,"Else Lindstow",null,"Approved","Officialy Recognised description",null,"Complete Application","Accepted",null,"Else Lindstow",null,null,null,null,null,"N/A",null,null,null,"NO"]
["2017/DK/MALUS_DOM/FARUMÆBLE/Farumæble","DK","Malus","domestica","MALUS_DOM","Almindelig Æble",null,"Farumæble",null,"Approved","Officialy Recognised description",null,"Complete Application","Accepted",null,"Farumæble",null,null,null,null,null,"N/A",null,null,null,"NO"]
["2017/DK/MALUS_DOM/FEJØÆBLE/Fejøæble","DK","Malus","domestica","MALUS_DOM","Almindelig Æble",null,"Fejøæble",null,"Approved","Officialy Recognised description",null,"Complete Application","Accepted",null,"Fejøæble",null,null,null,null,null,"N/A",null,null,null,"NO"]
["2017/DK/MALUS_DOM/FELIX/Felix","DK","Malus","domestica","MALUS_DOM","Almindelig Æble",null,"Felix",null,"Approved","Officialy Recognised description",null,"Complete Application","Accepted",null,"Felix",null,null,null,null,null,"N/A",null,null,null,"NO"]
["2017/DK/MALUS_DOM/FEMØ ÆBLE/Femø æble","DK","Malus","domestica","MALUS_DOM","Almindelig Æble",null,"Femø æble",null,"Approved","Officialy Recognised description",null,"Complete Application","Accepted",null,"Femø æble",null,null,null,null,null,"N/A",null,null,null,"NO"]
["2017/DK/MALUS_DOM/FERSKENÆBLE/Ferskenæble","DK","Malus","domestica","MALUS_DOM","Almindelig Æble",null,"Ferskenæble",null,"Approved","Officialy Recognised description",null,"Complete Application","Accepted",null,"Ferskenæble",null,null,null,null,null,"N/A",null,null,null,"NO"]
["2017/DK/MALUS_DOM/FILIPPA/Filippa","DK","Malus","domestica","MALUS_DOM","Almindelig Æble",null,"Filippa",null,"Approved","Officialy Recognised description",null,"Complete Application","Accepted",null,"Filippa",null,null,null,null,null,"N/A",null,null,null,"NO"]
["2017/DK/MALUS_DOM/FILIPPA ANKA/Filippa Anka","DK","Malus","domestica","MALUS_DOM","Almindelig Æble",null,"Filippa Anka",null,"Approved","Officialy Recognised description",null,"Complete Application","Accepted",null,"Filippa Anka",null,null,null,null,null,"N/A",null,null,null,"NO"]
["2017/DK/MALUS_DOM/FLASKEHALSER/Flaskehalser","DK","Malus","domestica","MALUS_DOM","Almindelig Æble",null,"Flaskehalser",null,"Approved","Officialy Recognised description",null,"Complete Application","Accepted",null,"Flaskehalser",null,null,null,null,null,"N/A",null,null,null,"NO"]
["2017/DK/MALUS_DOM/FLINTINGE/Flintinge","DK","Malus","domestica","MALUS_DOM","Almindelig Æble",null,"Flintinge",null,"Approved","Officialy Recognised description",null,"Complete Application","Accepted",null,"Flintinge",null,null,null,null,null,"N/A",null,null,null,"NO"]
["2017/DK/MALUS_DOM/FLORA/Flora","DK","Malus","domestica","MALUS_DOM","Almindelig Æble",null,"Flora",null,"Approved","Officialy Recognised description",null,"Complete Application","Accepted",null,"Flora",null,null,null,null,null,"N/A",null,null,null,"NO"]
["2017/DK/MALUS_DOM/FRANZ/Franz","DK","Malus","domestica","MALUS_DOM","Almindelig Æble",null,"Franz",null,"Approved","Officialy Recognised description",null,"Complete Application","Accepted",null,"Franz",null,null,null,null,null,"N/A",null,null,null,"NO"]
["2017/DK/MALUS_DOM/FREDERIK/Frederik","DK","Malus","domestica","MALUS_DOM","Almindelig Æble",null,"Frederik",null,"Approved","Officialy Recognised description",null,"Complete Application","Accepted",null,"Frederik",null,null,null,null,null,"N/A",null,null,null,"NO"]
["2017/DK/MALUS_DOM/FRITZ/Fritz","DK","Malus","domestica","MALUS_DOM","Almindelig Æble",null,"Fritz",null,"Approved","Officialy Recognised description",null,"Complete Application","Accepted",null,"Fritz",null,null,null,null,null,"N/A",null,null,null,"NO"]
["2017/DK/MALUS_DOM/FRU GLAHNS ÆLBE /Fru Glahns ælbe ","DK","Malus","domestica","MALUS_DOM","Almindelig Æble",null,"Fru Glahns ælbe ",null,"Approved","Officialy Recognised description",null,"Complete Application","Accepted",null,"Fru Glahns ælbe ",null,null,null,null,null,"N/A",null,null,null,"NO"]
["2017/DK/MALUS_DOM/FRØRUP ÆBLE/Frørup æble","DK","Malus","domestica","MALUS_DOM","Almindelig Æble",null,"Frørup æble",null,"Approved","Officialy Recognised description",null,"Complete Application","Accepted",null,"Frørup æble",null,null,null,null,null,"N/A",null,null,null,"NO"]
["2017/DK/MALUS_DOM/FÅBORGÆBLE/Fåborgæble","DK","Malus","domestica","MALUS_DOM","Almindelig Æble",null,"Fåborgæble",null,"Approved","Officialy Recognised description",null,"Complete Application","Accepted",null,"Fåborgæble",null,null,null,null,null,"N/A",null,null,null,"NO"]
["2017/DK/MALUS_DOM/FÅREMULE/Fåremule","DK","Malus","domestica","MALUS_DOM","Almindelig Æble",null,"Fåremule",null,"Approved","Officialy Recognised description",null,"Complete Application","Accepted",null,"Fåremule",null,null,null,null,null,"N/A",null,null,null,"NO"]
["2017/DK/MALUS_DOM/GLASÆBLE/Glasæble","DK","Malus","domestica","MALUS_DOM","Almindelig Æble",null,"Glasæble",null,"Approved","Officialy Recognised description",null,"Complete Application","Accepted",null,"Glasæble",null,null,null,null,null,"N/A",null,null,null,"NO"]
["2017/DK/MALUS_DOM/GLOSTRUP GULDREINETTE/Glostrup Guldreinette","DK","Malus","domestica","MALUS_DOM","Almindelig Æble",null,"Glostrup Guldreinette",null,"Approved","Officialy Recognised description",null,"Complete Application","Accepted",null,"Glostrup Guldreinette",null,null,null,null,null,"N/A",null,null,null,"NO"]
["2017/DK/MALUS_DOM/GRAVENFIN/Gravenfin","DK","Malus","domestica","MALUS_DOM","Almindelig Æble",null,"Gravenfin",null,"Approved","Officialy Recognised description",null,"Complete Application","Accepted",null,"Gravenfin",null,null,null,null,null,"N/A",null,null,null,"NO"]
["2017/DK/MALUS_DOM/GRÆNSE/Grænse","DK","Malus","domestica","MALUS_DOM","Almindelig Æble",null,"Grænse",null,"Approved","Officialy Recognised description",null,"Complete Application","Accepted",null,"Grænse",null,null,null,null,null,"N/A",null,null,null,"NO"]
["2017/DK/MALUS_DOM/GRÅ MØLLES ÆBLE/Grå Mølles æble","DK","Malus","domestica","MALUS_DOM","Almindelig Æble",null,"Grå Mølles æble",null,"Approved","Officialy Recognised description",null,"Complete Application","Accepted",null,"Grå Mølles æble",null,null,null,null,null,"N/A",null,null,null,"NO"]
["2017/DK/MALUS_DOM/GRÅSTEN/Gråsten","DK","Malus","domestica","MALUS_DOM","Almindelig Æble",null,"Gråsten",null,"Approved","Officialy Recognised description",null,"Complete Application","Accepted",null,"Gråsten",null,null,null,null,null,"N/A",null,null,null,"NO"]
["2017/DK/MALUS_DOM/GULT AUGUSTÆBLE/Gult Augustæble","DK","Malus","domestica","MALUS_DOM","Almindelig Æble",null,"Gult Augustæble",null,"Approved","Officialy Recognised description",null,"Complete Application","Accepted",null,"Gult Augustæble",null,null,null,null,null,"N/A",null,null,null,"NO"]
["2017/DK/MALUS_DOM/HANS MATHIESEN/Hans Mathiesen","DK","Malus","domestica","MALUS_DOM","Almindelig Æble",null,"Hans Mathiesen",null,"Approved","Officialy Recognised description",null,"Complete Application","Accepted",null,"Hans Mathiesen",null,null,null,null,null,"N/A",null,null,null,"NO"]
["2017/DK/MALUS_DOM/HANS PETER MARKUSSEN/Hans Peter Markussen","DK","Malus","domestica","MALUS_DOM","Almindelig Æble",null,"Hans Peter Markussen",null,"Approved","Officialy Recognised description",null,"Complete Application","Accepted",null,"Hans Peter Markussen",null,null,null,null,null,"N/A",null,null,null,"NO"]
["2017/DK/MALUS_DOM/HANS WASSARD/Hans Wassard","DK","Malus","domestica","MALUS_DOM","Almindelig Æble",null,"Hans Wassard",null,"Approved","Officialy Recognised description",null,"Complete Application","Accepted",null,"Hans Wassard",null,null,null,null,null,"N/A",null,null,null,"NO"]
["2017/DK/MALUS_DOM/HARRESLEV ÆBLE/Harreslev æble","DK","Malus","domestica","MALUS_DOM","Almindelig Æble",null,"Harreslev æble",null,"Approved","Officialy Recognised description",null,"Complete Application","Accepted",null,"Harreslev æble",null,null,null,null,null,"N/A",null,null,null,"NO"]
["2017/DK/MALUS_DOM/HELSINGØR GULDREINET/Helsingør Guldreinet","DK","Malus","domestica","MALUS_DOM","Almindelig Æble",null,"Helsingør Guldreinet",null,"Approved","Officialy Recognised description",null,"Complete Application","Accepted",null,"Helsingør Guldreinet",null,null,null,null,null,"N/A",null,null,null,"NO"]
["2017/DK/MALUS_DOM/HENRIK JENSENS ÆBLE/Henrik Jensens æble","DK","Malus","domestica","MALUS_DOM","Almindelig Æble",null,"Henrik Jensens æble",null,"Approved","Officialy Recognised description",null,"Complete Application","Accepted",null,"Henrik Jensens æble",null,null,null,null,null,"N/A",null,null,null,"NO"]
["2017/DK/MALUS_DOM/HERFØLGE VOKSÆBLE/Herfølge Voksæble","DK","Malus","domestica","MALUS_DOM","Almindelig Æble",null,"Herfølge Voksæble",null,"Approved","Officialy Recognised description",null,"Complete Application","Accepted",null,"Herfølge Voksæble",null,null,null,null,null,"N/A",null,null,null,"NO"]
["2017/DK/MALUS_DOM/HERMAN/Herman","DK","Malus","domestica","MALUS_DOM","Almindelig Æble",null,"Herman",null,"Approved","Officialy Recognised description",null,"Complete Application","Accepted",null,"Herman",null,null,null,null,null,"N/A",null,null,null,"NO"]
["2017/DK/MALUS_DOM/HERSCHENDSGAVE/Herschendsgave","DK","Malus","domestica","MALUS_DOM","Almindelig Æble",null,"Herschendsgave",null,"Approved","Officialy Recognised description",null,"Complete Application","Accepted",null,"Herschendsgave",null,null,null,null,null,"N/A",null,null,null,"NO"]
["2017/DK/MALUS_DOM/HILLESTED ÆBLE/Hillested æble","DK","Malus","domestica","MALUS_DOM","Almindelig Æble",null,"Hillested æble",null,"Approved","Officialy Recognised description",null,"Complete Application","Accepted",null,"Hillested æble",null,null,null,null,null,"N/A",null,null,null,"NO"]
["2017/DK/MALUS_DOM/HJORTHOLM /Hjortholm ","DK","Malus","domestica","MALUS_DOM","Almindelig Æble",null,"Hjortholm ",null,"Approved","Officialy Recognised description",null,"Complete Application","Accepted",null,"Hjortholm ",null,null,null,null,null,"N/A",null,null,null,"NO"]
["2017/DK/MALUS_DOM/HOFFMANN BANG/Hoffmann Bang","DK","Malus","domestica","MALUS_DOM","Almindelig Æble",null,"Hoffmann Bang",null,"Approved","Officialy Recognised description",null,"Complete Application","Accepted",null,"Hoffmann Bang",null,null,null,null,null,"N/A",null,null,null,"NO"]
["2017/DK/MALUS_DOM/HOLMEÆBLE/Holmeæble","DK","Malus","domestica","MALUS_DOM","Almindelig Æble",null,"Holmeæble",null,"Approved","Officialy Recognised description",null,"Complete Application","Accepted",null,"Holmeæble",null,null,null,null,null,"N/A",null,null,null,"NO"]
["2017/DK/MALUS_DOM/HOLSTENHUS/Holstenhus","DK","Malus","domestica","MALUS_DOM","Almindelig Æble",null,"Holstenhus",null,"Approved","Officialy Recognised description",null,"Complete Application","Accepted",null,"Holstenhus",null,null,null,null,null,"N/A",null,null,null,"NO"]
[{"$f":"YEAR(NOW()) &  \"/\" &  B71 & \"/\" & E71 & \"/\" & IF(LEN(AF71) >0,UPPER(AF71),UPPER(H71)) & \"/\" & P71","v":"2017/DK/MALUS_DOM/HVIDKILDE VOKSÆBLE/Hvidkilde voksæble"},"DK","Malus","domestica","MALUS_DOM","Almindelig Æble",null,"Hvidkilde voksæble",null,"Approved","Officialy Recognised description",null,"Complete Application","Accepted",null,"Hvidkilde voksæble",null,null,null,null,null,"N/A",null,null,null,"NO"]
["2017/DK/MALUS_DOM/HYLDTOFTE ÆBLE/Hyldtofte æble","DK","Malus","domestica","MALUS_DOM","Almindelig Æble",null,"Hyldtofte æble",null,"Approved","Officialy Recognised description",null,"Complete Application","Accepted",null,"Hyldtofte æble",null,null,null,null,null,"N/A",null,null,null,"NO"]
["2017/DK/MALUS_DOM/HØJBJERG KALVIL/Højbjerg Kalvil","DK","Malus","domestica","MALUS_DOM","Almindelig Æble",null,"Højbjerg Kalvil",null,"Approved","Officialy Recognised description",null,"Complete Application","Accepted",null,"Højbjerg Kalvil",null,null,null,null,null,"N/A",null,null,null,"NO"]
["2017/DK/MALUS_DOM/HØJBJERG SOMMERÆBLE/Højbjerg Sommeræble","DK","Malus","domestica","MALUS_DOM","Almindelig Æble",null,"Højbjerg Sommeræble",null,"Approved","Officialy Recognised description",null,"Complete Application","Accepted",null,"Højbjerg Sommeræble",null,null,null,null,null,"N/A",null,null,null,"NO"]
["2017/DK/MALUS_DOM/HØVE REINETT/Høve Reinett","DK","Malus","domestica","MALUS_DOM","Almindelig Æble",null,"Høve Reinett",null,"Approved","Officialy Recognised description",null,"Complete Application","Accepted",null,"Høve Reinett",null,null,null,null,null,"N/A",null,null,null,"NO"]
["2017/DK/MALUS_DOM/ILDRØD EJLSTRUP/Ildrød Ejlstrup","DK","Malus","domestica","MALUS_DOM","Almindelig Æble",null,"Ildrød Ejlstrup",null,"Approved","Officialy Recognised description",null,"Complete Application","Accepted",null,"Ildrød Ejlstrup",null,null,null,null,null,"N/A",null,null,null,"NO"]
["2017/DK/MALUS_DOM/INGERS ÆBLE/Ingers Æble","DK","Malus","domestica","MALUS_DOM","Almindelig Æble",null,"Ingers Æble",null,"Approved","Officialy Recognised description",null,"Complete Application","Accepted",null,"Ingers Æble",null,null,null,null,null,"N/A",null,null,null,"NO"]
["2017/DK/MALUS_DOM/INGRID MARIE/Ingrid Marie","DK","Malus","domestica","MALUS_DOM","Almindelig Æble",null,"Ingrid Marie",null,"Approved","Officialy Recognised description",null,"Complete Application","Accepted",null,"Ingrid Marie",null,null,null,null,null,"N/A",null,null,null,"NO"]
["2017/DK/MALUS_DOM/JARNAK/Jarnak","DK","Malus","domestica","MALUS_DOM","Almindelig Æble",null,"Jarnak",null,"Approved","Officialy Recognised description",null,"Complete Application","Accepted",null,"Jarnak",null,null,null,null,null,"N/A",null,null,null,"NO"]
["2017/DK/MALUS_DOM/JOHANSENS RØDE HØSTÆBLE/Johansens røde høstæble","DK","Malus","domestica","MALUS_DOM","Almindelig Æble",null,"Johansens røde høstæble",null,"Approved","Officialy Recognised description",null,"Complete Application","Accepted",null,"Johansens røde høstæble",null,null,null,null,null,"N/A",null,null,null,"NO"]
["2017/DK/MALUS_DOM/KNUD LUNN/Knud Lunn","DK","Malus","domestica","MALUS_DOM","Almindelig Æble",null,"Knud Lunn",null,"Approved","Officialy Recognised description",null,"Complete Application","Accepted",null,"Knud Lunn",null,null,null,null,null,"N/A",null,null,null,"NO"]
["2017/DK/MALUS_DOM/KOLDEMOSEGAARD/Koldemosegaard","DK","Malus","domestica","MALUS_DOM","Almindelig Æble",null,"Koldemosegaard",null,"Approved","Officialy Recognised description",null,"Complete Application","Accepted",null,"Koldemosegaard",null,null,null,null,null,"N/A",null,null,null,"NO"]
["2017/DK/MALUS_DOM/KONGEÆBLE/Kongeæble","DK","Malus","domestica","MALUS_DOM","Almindelig Æble",null,"Kongeæble",null,"Approved","Officialy Recognised description",null,"Complete Application","Accepted",null,"Kongeæble",null,null,null,null,null,"N/A",null,null,null,"NO"]
["2017/DK/MALUS_DOM/KRONPRINS FREDERIKS TAFFELÆBLE/Kronprins Frederiks Taffelæble","DK","Malus","domestica","MALUS_DOM","Almindelig Æble",null,"Kronprins Frederiks Taffelæble",null,"Approved","Officialy Recognised description",null,"Complete Application","Accepted",null,"Kronprins Frederiks Taffelæble",null,null,null,null,null,"N/A",null,null,null,"NO"]
["2017/DK/MALUS_DOM/KUNDBY ÆBLE/Kundby æble","DK","Malus","domestica","MALUS_DOM","Almindelig Æble",null,"Kundby æble",null,"Approved","Officialy Recognised description",null,"Complete Application","Accepted",null,"Kundby æble",null,null,null,null,null,"N/A",null,null,null,"NO"]
["2017/DK/MALUS_DOM/KYHOLM REINET/Kyholm Reinet","DK","Malus","domestica","MALUS_DOM","Almindelig Æble",null,"Kyholm Reinet",null,"Approved","Officialy Recognised description",null,"Complete Application","Accepted",null,"Kyholm Reinet",null,null,null,null,null,"N/A",null,null,null,"NO"]
["2017/DK/MALUS_DOM/LANGELANDS HVID PIGEON/Langelands hvid pigeon","DK","Malus","domestica","MALUS_DOM","Almindelig Æble",null,"Langelands hvid pigeon",null,"Approved","Officialy Recognised description",null,"Complete Application","Accepted",null,"Langelands hvid pigeon",null,null,null,null,null,"N/A",null,null,null,"NO"]
["2017/DK/MALUS_DOM/LANGELANDSÆBLE/Langelandsæble","DK","Malus","domestica","MALUS_DOM","Almindelig Æble",null,"Langelandsæble",null,"Approved","Officialy Recognised description",null,"Complete Application","Accepted",null,"Langelandsæble",null,null,null,null,null,"N/A",null,null,null,"NO"]
["2017/DK/MALUS_DOM/LISE LEGIND/Lise Legind","DK","Malus","domestica","MALUS_DOM","Almindelig Æble",null,"Lise Legind",null,"Approved","Officialy Recognised description",null,"Complete Application","Accepted",null,"Lise Legind",null,null,null,null,null,"N/A",null,null,null,"NO"]
["2017/DK/MALUS_DOM/LUDVIGSENS ÆBLE/Ludvigsens æble","DK","Malus","domestica","MALUS_DOM","Almindelig Æble",null,"Ludvigsens æble",null,"Approved","Officialy Recognised description",null,"Complete Application","Accepted",null,"Ludvigsens æble",null,null,null,null,null,"N/A",null,null,null,"NO"]
["2017/DK/MALUS_DOM/LUNDBYTORP/Lundbytorp","DK","Malus","domestica","MALUS_DOM","Almindelig Æble",null,"Lundbytorp",null,"Approved","Officialy Recognised description",null,"Complete Application","Accepted",null,"Lundbytorp",null,null,null,null,null,"N/A",null,null,null,"NO"]
["2017/DK/MALUS_DOM/LYNGBYÆBLE/Lyngbyæble","DK","Malus","domestica","MALUS_DOM","Almindelig Æble",null,"Lyngbyæble",null,"Approved","Officialy Recognised description",null,"Complete Application","Accepted",null,"Lyngbyæble",null,null,null,null,null,"N/A",null,null,null,"NO"]
["2017/DK/MALUS_DOM/LØGÆBLE/Løgæble","DK","Malus","domestica","MALUS_DOM","Almindelig Æble",null,"Løgæble",null,"Approved","Officialy Recognised description",null,"Complete Application","Accepted",null,"Løgæble",null,null,null,null,null,"N/A",null,null,null,"NO"]
["2017/DK/MALUS_DOM/MAGLEMER /Maglemer ","DK","Malus","domestica","MALUS_DOM","Almindelig Æble",null,"Maglemer ",null,"Approved","Officialy Recognised description",null,"Complete Application","Accepted",null,"Maglemer ",null,null,null,null,null,"N/A",null,null,null,"NO"]
["2017/DK/MALUS_DOM/MAREN NIS/Maren Nis","DK","Malus","domestica","MALUS_DOM","Almindelig Æble",null,"Maren Nis",null,"Approved","Officialy Recognised description",null,"Complete Application","Accepted",null,"Maren Nis",null,null,null,null,null,"N/A",null,null,null,"NO"]
["2017/DK/MALUS_DOM/MARIEÆBLE FRA HJORTHOLM/Marieæble fra Hjortholm","DK","Malus","domestica","MALUS_DOM","Almindelig Æble",null,"Marieæble fra Hjortholm",null,"Approved","Officialy Recognised description",null,"Complete Application","Accepted",null,"Marieæble fra Hjortholm",null,null,null,null,null,"N/A",null,null,null,"NO"]
["2017/DK/MALUS_DOM/MARKUSSENS ÆBLE/Markussens æble","DK","Malus","domestica","MALUS_DOM","Almindelig Æble",null,"Markussens æble",null,"Approved","Officialy Recognised description",null,"Complete Application","Accepted",null,"Markussens æble",null,null,null,null,null,"N/A",null,null,null,"NO"]
["2017/DK/MALUS_DOM/MARSELISBORG SOMMERÆBLE/Marselisborg sommeræble","DK","Malus","domestica","MALUS_DOM","Almindelig Æble",null,"Marselisborg sommeræble",null,"Approved","Officialy Recognised description",null,"Complete Application","Accepted",null,"Marselisborg sommeræble",null,null,null,null,null,"N/A",null,null,null,"NO"]
["2017/DK/MALUS_DOM/MATHILDE/Mathilde","DK","Malus","domestica","MALUS_DOM","Almindelig Æble",null,"Mathilde",null,"Approved","Officialy Recognised description",null,"Complete Application","Accepted",null,"Mathilde",null,null,null,null,null,"N/A",null,null,null,"NO"]
["2017/DK/MALUS_DOM/MIKKEL PEDERS ÆBLE/Mikkel Peders æble","DK","Malus","domestica","MALUS_DOM","Almindelig Æble",null,"Mikkel Peders æble",null,"Approved","Officialy Recognised description",null,"Complete Application","Accepted",null,"Mikkel Peders æble",null,null,null,null,null,"N/A",null,null,null,"NO"]
["2017/DK/MALUS_DOM/MORMORS ÆBLE/Mormors æble","DK","Malus","domestica","MALUS_DOM","Almindelig Æble",null,"Mormors æble",null,"Approved","Officialy Recognised description",null,"Complete Application","Accepted",null,"Mormors æble",null,null,null,null,null,"N/A",null,null,null,"NO"]
["2017/DK/MALUS_DOM/MØLLERS VENUS/Møllers Venus","DK","Malus","domestica","MALUS_DOM","Almindelig Æble",null,"Møllers Venus",null,"Approved","Officialy Recognised description",null,"Complete Application","Accepted",null,"Møllers Venus",null,null,null,null,null,"N/A",null,null,null,"NO"]
["2017/DK/MALUS_DOM/MØLLESKOV/Mølleskov","DK","Malus","domestica","MALUS_DOM","Almindelig Æble",null,"Mølleskov",null,"Approved","Officialy Recognised description",null,"Complete Application","Accepted",null,"Mølleskov",null,null,null,null,null,"N/A",null,null,null,"NO"]
["2017/DK/MALUS_DOM/NIELS JUUL/Niels Juul","DK","Malus","domestica","MALUS_DOM","Almindelig Æble",null,"Niels Juul",null,"Approved","Officialy Recognised description",null,"Complete Application","Accepted",null,"Niels Juul",null,null,null,null,null,"N/A",null,null,null,"NO"]
["2017/DK/MALUS_DOM/NIELS OLSENS ÆBLE/Niels Olsens æble","DK","Malus","domestica","MALUS_DOM","Almindelig Æble",null,"Niels Olsens æble",null,"Approved","Officialy Recognised description",null,"Complete Application","Accepted",null,"Niels Olsens æble",null,null,null,null,null,"N/A",null,null,null,"NO"]
["2017/DK/MALUS_DOM/NINAS ÆBLE/Ninas æble","DK","Malus","domestica","MALUS_DOM","Almindelig Æble",null,"Ninas æble",null,"Approved","Officialy Recognised description",null,"Complete Application","Accepted",null,"Ninas æble",null,null,null,null,null,"N/A",null,null,null,"NO"]
["2017/DK/MALUS_DOM/NONNETIT /Nonnetit ","DK","Malus","domestica","MALUS_DOM","Almindelig Æble",null,"Nonnetit ",null,"Approved","Officialy Recognised description",null,"Complete Application","Accepted",null,"Nonnetit ",null,null,null,null,null,"N/A",null,null,null,"NO"]
["2017/DK/MALUS_DOM/NØRREGAARSÆBLE           /Nørregaarsæble           ","DK","Malus","domestica","MALUS_DOM","Almindelig Æble",null,"Nørregaarsæble           ",null,"Approved","Officialy Recognised description",null,"Complete Application","Accepted",null,"Nørregaarsæble           ",null,null,null,null,null,"N/A",null,null,null,"NO"]
["2017/DK/MALUS_DOM/ONDRUP MOSEÆBLE/Ondrup moseæble","DK","Malus","domestica","MALUS_DOM","Almindelig Æble",null,"Ondrup moseæble",null,"Approved","Officialy Recognised description",null,"Complete Application","Accepted",null,"Ondrup moseæble",null,null,null,null,null,"N/A",null,null,null,"NO"]
["2017/DK/MALUS_DOM/ONDRUP SOMMERÆBLE/Ondrup Sommeræble","DK","Malus","domestica","MALUS_DOM","Almindelig Æble",null,"Ondrup Sommeræble",null,"Approved","Officialy Recognised description",null,"Complete Application","Accepted",null,"Ondrup Sommeræble",null,null,null,null,null,"N/A",null,null,null,"NO"]
["2017/DK/MALUS_DOM/ORMSLEVÆBLE/Ormslevæble","DK","Malus","domestica","MALUS_DOM","Almindelig Æble",null,"Ormslevæble",null,"Approved","Officialy Recognised description",null,"Complete Application","Accepted",null,"Ormslevæble",null,null,null,null,null,"N/A",null,null,null,"NO"]
["2017/DK/MALUS_DOM/OUDRUPGÅRDS HØSTÆBLE/Oudrupgårds høstæble","DK","Malus","domestica","MALUS_DOM","Almindelig Æble",null,"Oudrupgårds høstæble",null,"Approved","Officialy Recognised description",null,"Complete Application","Accepted",null,"Oudrupgårds høstæble",null,null,null,null,null,"N/A",null,null,null,"NO"]
["2017/DK/MALUS_DOM/PEDERSTRUP/Pederstrup","DK","Malus","domestica","MALUS_DOM","Almindelig Æble",null,"Pederstrup",null,"Approved","Officialy Recognised description",null,"Complete Application","Accepted",null,"Pederstrup",null,null,null,null,null,"N/A",null,null,null,"NO"]
["2017/DK/MALUS_DOM/PER SMED/Per Smed","DK","Malus","domestica","MALUS_DOM","Almindelig Æble",null,"Per Smed",null,"Approved","Officialy Recognised description",null,"Complete Application","Accepted",null,"Per Smed",null,null,null,null,null,"N/A",null,null,null,"NO"]
["2017/DK/MALUS_DOM/PETER HANSENS ÆBLE/Peter Hansens æble","DK","Malus","domestica","MALUS_DOM","Almindelig Æble",null,"Peter Hansens æble",null,"Approved","Officialy Recognised description",null,"Complete Application","Accepted",null,"Peter Hansens æble",null,null,null,null,null,"N/A",null,null,null,"NO"]
["2017/DK/MALUS_DOM/PIGEON/Pigeon","DK","Malus","domestica","MALUS_DOM","Almindelig Æble",null,"Pigeon",null,"Approved","Officialy Recognised description",null,"Complete Application","Accepted",null,"Pigeon",null,null,null,null,null,"N/A",null,null,null,"NO"]
["2017/DK/MALUS_DOM/PILEHAVEÆBLE/Pilehaveæble","DK","Malus","domestica","MALUS_DOM","Almindelig Æble",null,"Pilehaveæble",null,"Approved","Officialy Recognised description",null,"Complete Application","Accepted",null,"Pilehaveæble",null,null,null,null,null,"N/A",null,null,null,"NO"]
["2017/DK/MALUS_DOM/PURPURELLA/Purpurella","DK","Malus","domestica","MALUS_DOM","Almindelig Æble",null,"Purpurella",null,"Approved","Officialy Recognised description",null,"Complete Application","Accepted",null,"Purpurella",null,null,null,null,null,"N/A",null,null,null,"NO"]
["2017/DK/MALUS_DOM/PÆREGÅRDS ÆBLE/Pæregårds æble","DK","Malus","domestica","MALUS_DOM","Almindelig Æble",null,"Pæregårds æble",null,"Approved","Officialy Recognised description",null,"Complete Application","Accepted",null,"Pæregårds æble",null,null,null,null,null,"N/A",null,null,null,"NO"]
["2017/DK/MALUS_DOM/RASMUS HANSENS ÆBLE/Rasmus Hansens æble","DK","Malus","domestica","MALUS_DOM","Almindelig Æble",null,"Rasmus Hansens æble",null,"Approved","Officialy Recognised description",null,"Complete Application","Accepted",null,"Rasmus Hansens æble",null,null,null,null,null,"N/A",null,null,null,"NO"]
["2017/DK/MALUS_DOM/RIFBJERG GYLLING/Rifbjerg Gylling","DK","Malus","domestica","MALUS_DOM","Almindelig Æble",null,"Rifbjerg Gylling",null,"Approved","Officialy Recognised description",null,"Complete Application","Accepted",null,"Rifbjerg Gylling",null,null,null,null,null,"N/A",null,null,null,"NO"]
["2017/DK/MALUS_DOM/RIFBJERG SKARLAGER PEARMAIN/Rifbjerg Skarlager Pearmain","DK","Malus","domestica","MALUS_DOM","Almindelig Æble",null,"Rifbjerg Skarlager Pearmain",null,"Approved","Officialy Recognised description",null,"Complete Application","Accepted",null,"Rifbjerg Skarlager Pearmain",null,null,null,null,null,"N/A",null,null,null,"NO"]
["2017/DK/MALUS_DOM/RINGKLOSTER KAMMERJUNKER/Ringkloster Kammerjunker","DK","Malus","domestica","MALUS_DOM","Almindelig Æble",null,"Ringkloster Kammerjunker",null,"Approved","Officialy Recognised description",null,"Complete Application","Accepted",null,"Ringkloster Kammerjunker",null,null,null,null,null,"N/A",null,null,null,"NO"]
["2017/DK/MALUS_DOM/RISSKOV RAMBOUR/Risskov Rambour","DK","Malus","domestica","MALUS_DOM","Almindelig Æble",null,"Risskov Rambour",null,"Approved","Officialy Recognised description",null,"Complete Application","Accepted",null,"Risskov Rambour",null,null,null,null,null,"N/A",null,null,null,"NO"]
["2017/DK/MALUS_DOM/ROLUND/Rolund","DK","Malus","domestica","MALUS_DOM","Almindelig Æble",null,"Rolund",null,"Approved","Officialy Recognised description",null,"Complete Application","Accepted",null,"Rolund",null,null,null,null,null,"N/A",null,null,null,"NO"]
["2017/DK/MALUS_DOM/ROSENHOLM /Rosenholm ","DK","Malus","domestica","MALUS_DOM","Almindelig Æble",null,"Rosenholm ",null,"Approved","Officialy Recognised description",null,"Complete Application","Accepted",null,"Rosenholm ",null,null,null,null,null,"N/A",null,null,null,"NO"]
["2017/DK/MALUS_DOM/RØD LUNDSGÅRD/Rød Lundsgård","DK","Malus","domestica","MALUS_DOM","Almindelig Æble",null,"Rød Lundsgård",null,"Approved","Officialy Recognised description",null,"Complete Application","Accepted",null,"Rød Lundsgård",null,null,null,null,null,"N/A",null,null,null,"NO"]
["2017/DK/MALUS_DOM/RØDBY ÆBLE/Rødby æble","DK","Malus","domestica","MALUS_DOM","Almindelig Æble",null,"Rødby æble",null,"Approved","Officialy Recognised description",null,"Complete Application","Accepted",null,"Rødby æble",null,null,null,null,null,"N/A",null,null,null,"NO"]
["2017/DK/MALUS_DOM/RØDHÆTTE ÆBLE/Rødhætte æble","DK","Malus","domestica","MALUS_DOM","Almindelig Æble",null,"Rødhætte æble",null,"Approved","Officialy Recognised description",null,"Complete Application","Accepted",null,"Rødhætte æble",null,null,null,null,null,"N/A",null,null,null,"NO"]
["2017/DK/MALUS_DOM/SIGNE TILLISH/Signe Tillish","DK","Malus","domestica","MALUS_DOM","Almindelig Æble",null,"Signe Tillish",null,"Approved","Officialy Recognised description",null,"Complete Application","Accepted",null,"Signe Tillish",null,null,null,null,null,"N/A",null,null,null,"NO"]
["2017/DK/MALUS_DOM/SILDIG SANDHOLDT ÆBLE/Sildig Sandholdt æble","DK","Malus","domestica","MALUS_DOM","Almindelig Æble",null,"Sildig Sandholdt æble",null,"Approved","Officialy Recognised description",null,"Complete Application","Accepted",null,"Sildig Sandholdt æble",null,null,null,null,null,"N/A",null,null,null,"NO"]
["2017/DK/MALUS_DOM/SKARRIDSØ ÆBLE/Skarridsø æble","DK","Malus","domestica","MALUS_DOM","Almindelig Æble",null,"Skarridsø æble",null,"Approved","Officialy Recognised description",null,"Complete Application","Accepted",null,"Skarridsø æble",null,null,null,null,null,"N/A",null,null,null,"NO"]
["2017/DK/MALUS_DOM/SKENKELSØ ÆBLE/Skenkelsø æble","DK","Malus","domestica","MALUS_DOM","Almindelig Æble",null,"Skenkelsø æble",null,"Approved","Officialy Recognised description",null,"Complete Application","Accepted",null,"Skenkelsø æble",null,null,null,null,null,"N/A",null,null,null,"NO"]
["2017/DK/MALUS_DOM/SKENSVED ÆBLE/Skensved æble","DK","Malus","domestica","MALUS_DOM","Almindelig Æble",null,"Skensved æble",null,"Approved","Officialy Recognised description",null,"Complete Application","Accepted",null,"Skensved æble",null,null,null,null,null,"N/A",null,null,null,"NO"]
[{"$f":"YEAR(NOW()) &  \"/\" &  B135 & \"/\" & E135 & \"/\" & IF(LEN(AF135) >0,UPPER(AF135),UPPER(H135)) & \"/\" & P135","v":"2017/DK/MALUS_DOM/SKOVFOGED/Skovfoged"},"DK","Malus","domestica","MALUS_DOM","Almindelig Æble",null,"Skovfoged",null,"Approved","Officialy Recognised description",null,"Complete Application","Accepted",null,"Skovfoged",null,null,null,null,null,"N/A",null,null,null,"NO"]
["2017/DK/MALUS_DOM/SOESMARK ÆBLE/Soesmark æble","DK","Malus","domestica","MALUS_DOM","Almindelig Æble",null,"Soesmark æble",null,"Approved","Officialy Recognised description",null,"Complete Application","Accepted",null,"Soesmark æble",null,null,null,null,null,"N/A",null,null,null,"NO"]
["2017/DK/MALUS_DOM/SOFIE/Sofie","DK","Malus","domestica","MALUS_DOM","Almindelig Æble",null,"Sofie",null,"Approved","Officialy Recognised description",null,"Complete Application","Accepted",null,"Sofie",null,null,null,null,null,"N/A",null,null,null,"NO"]
["2017/DK/MALUS_DOM/SORØ ÆBLE/Sorø æble","DK","Malus","domestica","MALUS_DOM","Almindelig Æble",null,"Sorø æble",null,"Approved","Officialy Recognised description",null,"Complete Application","Accepted",null,"Sorø æble",null,null,null,null,null,"N/A",null,null,null,"NO"]
["2017/DK/MALUS_DOM/SPILMOSE ÆBLE/Spilmose æble","DK","Malus","domestica","MALUS_DOM","Almindelig Æble",null,"Spilmose æble",null,"Approved","Officialy Recognised description",null,"Complete Application","Accepted",null,"Spilmose æble",null,null,null,null,null,"N/A",null,null,null,"NO"]
["2017/DK/MALUS_DOM/STJERNEÆBLE/Stjerneæble","DK","Malus","domestica","MALUS_DOM","Almindelig Æble",null,"Stjerneæble",null,"Approved","Officialy Recognised description",null,"Complete Application","Accepted",null,"Stjerneæble",null,null,null,null,null,"N/A",null,null,null,"NO"]
["2017/DK/MALUS_DOM/STRANDBY ÆBLE/Strandby æble","DK","Malus","domestica","MALUS_DOM","Almindelig Æble",null,"Strandby æble",null,"Approved","Officialy Recognised description",null,"Complete Application","Accepted",null,"Strandby æble",null,null,null,null,null,"N/A",null,null,null,"NO"]
["2017/DK/MALUS_DOM/SUKKERTOP /Sukkertop ","DK","Malus","domestica","MALUS_DOM","Almindelig Æble",null,"Sukkertop ",null,"Approved","Officialy Recognised description",null,"Complete Application","Accepted",null,"Sukkertop ",null,null,null,null,null,"N/A",null,null,null,"NO"]
["2017/DK/MALUS_DOM/SVINDINGE ÆBLE/Svindinge æble","DK","Malus","domestica","MALUS_DOM","Almindelig Æble",null,"Svindinge æble",null,"Approved","Officialy Recognised description",null,"Complete Application","Accepted",null,"Svindinge æble",null,null,null,null,null,"N/A",null,null,null,"NO"]
["2017/DK/MALUS_DOM/SØBJERGÆBLE/Søbjergæble","DK","Malus","domestica","MALUS_DOM","Almindelig Æble",null,"Søbjergæble",null,"Approved","Officialy Recognised description",null,"Complete Application","Accepted",null,"Søbjergæble",null,null,null,null,null,"N/A",null,null,null,"NO"]
["2017/DK/MALUS_DOM/SØDE ÆBLER FRA ALSRODE/Søde æbler fra Alsrode","DK","Malus","domestica","MALUS_DOM","Almindelig Æble",null,"Søde æbler fra Alsrode",null,"Approved","Officialy Recognised description",null,"Complete Application","Accepted",null,"Søde æbler fra Alsrode",null,null,null,null,null,"N/A",null,null,null,"NO"]
["2017/DK/MALUS_DOM/SØNDERSKOV/Sønderskov","DK","Malus","domestica","MALUS_DOM","Almindelig Æble",null,"Sønderskov",null,"Approved","Officialy Recognised description",null,"Complete Application","Accepted",null,"Sønderskov",null,null,null,null,null,"N/A",null,null,null,"NO"]
["2017/DK/MALUS_DOM/TAGESMINDE ÆBLE/Tagesminde æble","DK","Malus","domestica","MALUS_DOM","Almindelig Æble",null,"Tagesminde æble",null,"Approved","Officialy Recognised description",null,"Complete Application","Accepted",null,"Tagesminde æble",null,null,null,null,null,"N/A",null,null,null,"NO"]
["2017/DK/MALUS_DOM/TERNDRUP ÆBLE/Terndrup æble","DK","Malus","domestica","MALUS_DOM","Almindelig Æble",null,"Terndrup æble",null,"Approved","Officialy Recognised description",null,"Complete Application","Accepted",null,"Terndrup æble",null,null,null,null,null,"N/A",null,null,null,"NO"]
["2017/DK/MALUS_DOM/THORAS ÆBLE/Thoras æble","DK","Malus","domestica","MALUS_DOM","Almindelig Æble",null,"Thoras æble",null,"Approved","Officialy Recognised description",null,"Complete Application","Accepted",null,"Thoras æble",null,null,null,null,null,"N/A",null,null,null,"NO"]
["2017/DK/MALUS_DOM/THYRA MATHIESEN/Thyra Mathiesen","DK","Malus","domestica","MALUS_DOM","Almindelig Æble",null,"Thyra Mathiesen",null,"Approved","Officialy Recognised description",null,"Complete Application","Accepted",null,"Thyra Mathiesen",null,null,null,null,null,"N/A",null,null,null,"NO"]
["2017/DK/MALUS_DOM/THYRISLUND/Thyrislund","DK","Malus","domestica","MALUS_DOM","Almindelig Æble",null,"Thyrislund",null,"Approved","Officialy Recognised description",null,"Complete Application","Accepted",null,"Thyrislund",null,null,null,null,null,"N/A",null,null,null,"NO"]
["2017/DK/MALUS_DOM/TJELE ÆBLE/Tjele æble","DK","Malus","domestica","MALUS_DOM","Almindelig Æble",null,"Tjele æble",null,"Approved","Officialy Recognised description",null,"Complete Application","Accepted",null,"Tjele æble",null,null,null,null,null,"N/A",null,null,null,"NO"]
["2017/DK/MALUS_DOM/TYRA MATHIESEN/Tyra Mathiesen","DK","Malus","domestica","MALUS_DOM","Almindelig Æble",null,"Tyra Mathiesen",null,"Approved","Officialy Recognised description",null,"Complete Application","Accepted",null,"Tyra Mathiesen",null,null,null,null,null,"N/A",null,null,null,"NO"]
["2017/DK/MALUS_DOM/TYREGOD KALVIL/Tyregod Kalvil","DK","Malus","domestica","MALUS_DOM","Almindelig Æble",null,"Tyregod Kalvil",null,"Approved","Officialy Recognised description",null,"Complete Application","Accepted",null,"Tyregod Kalvil",null,null,null,null,null,"N/A",null,null,null,"NO"]
["2017/DK/MALUS_DOM/TYRRESTRUP/Tyrrestrup","DK","Malus","domestica","MALUS_DOM","Almindelig Æble",null,"Tyrrestrup",null,"Approved","Officialy Recognised description",null,"Complete Application","Accepted",null,"Tyrrestrup",null,null,null,null,null,"N/A",null,null,null,"NO"]
["2017/DK/MALUS_DOM/TØNNES/Tønnes","DK","Malus","domestica","MALUS_DOM","Almindelig Æble",null,"Tønnes",null,"Approved","Officialy Recognised description",null,"Complete Application","Accepted",null,"Tønnes",null,null,null,null,null,"N/A",null,null,null,"NO"]
["2017/DK/MALUS_DOM/UDBY REINET/Udby Reinet","DK","Malus","domestica","MALUS_DOM","Almindelig Æble",null,"Udby Reinet",null,"Approved","Officialy Recognised description",null,"Complete Application","Accepted",null,"Udby Reinet",null,null,null,null,null,"N/A",null,null,null,"NO"]
["2017/DK/MALUS_DOM/ULDERUP/Ulderup","DK","Malus","domestica","MALUS_DOM","Almindelig Æble",null,"Ulderup",null,"Approved","Officialy Recognised description",null,"Complete Application","Accepted",null,"Ulderup",null,null,null,null,null,"N/A",null,null,null,"NO"]
["2017/DK/MALUS_DOM/VALLEKILDE SOMMERÆBLE/Vallekilde Sommeræble","DK","Malus","domestica","MALUS_DOM","Almindelig Æble",null,"Vallekilde Sommeræble",null,"Approved","Officialy Recognised description",null,"Complete Application","Accepted",null,"Vallekilde Sommeræble",null,null,null,null,null,"N/A",null,null,null,"NO"]
["2017/DK/MALUS_DOM/VALLEKILDE ÆBLE/Vallekilde Æble","DK","Malus","domestica","MALUS_DOM","Almindelig Æble",null,"Vallekilde Æble",null,"Approved","Officialy Recognised description",null,"Complete Application","Accepted",null,"Vallekilde Æble",null,null,null,null,null,"N/A",null,null,null,"NO"]
["2017/DK/MALUS_DOM/VALLØ REINET/Vallø Reinet","DK","Malus","domestica","MALUS_DOM","Almindelig Æble",null,"Vallø Reinet",null,"Approved","Officialy Recognised description",null,"Complete Application","Accepted",null,"Vallø Reinet",null,null,null,null,null,"N/A",null,null,null,"NO"]
["2017/DK/MALUS_DOM/VEJLØ/Vejlø","DK","Malus","domestica","MALUS_DOM","Almindelig Æble",null,"Vejlø",null,"Approved","Officialy Recognised description",null,"Complete Application","Accepted",null,"Vejlø",null,null,null,null,null,"N/A",null,null,null,"NO"]
["2017/DK/MALUS_DOM/VENUS/Venus","DK","Malus","domestica","MALUS_DOM","Almindelig Æble",null,"Venus",null,"Approved","Officialy Recognised description",null,"Complete Application","Accepted",null,"Venus",null,null,null,null,null,"N/A",null,null,null,"NO"]
["2017/DK/MALUS_DOM/VINTERÆBLE FRA HALSKOV/Vinteræble fra Halskov","DK","Malus","domestica","MALUS_DOM","Almindelig Æble",null,"Vinteræble fra Halskov",null,"Approved","Officialy Recognised description",null,"Complete Application","Accepted",null,"Vinteræble fra Halskov",null,null,null,null,null,"N/A",null,null,null,"NO"]
["2017/DK/MALUS_DOM/VINTERÆBLE FRA MAREBÆK/Vinteræble fra Marebæk","DK","Malus","domestica","MALUS_DOM","Almindelig Æble",null,"Vinteræble fra Marebæk",null,"Approved","Officialy Recognised description",null,"Complete Application","Accepted",null,"Vinteræble fra Marebæk",null,null,null,null,null,"N/A",null,null,null,"NO"]
["2017/DK/MALUS_DOM/VIRUMGÅRD/Virumgård","DK","Malus","domestica","MALUS_DOM","Almindelig Æble",null,"Virumgård",null,"Approved","Officialy Recognised description",null,"Complete Application","Accepted",null,"Virumgård",null,null,null,null,null,"N/A",null,null,null,"NO"]
["2017/DK/MALUS_DOM/YDUNS ÆBLE/Yduns æble","DK","Malus","domestica","MALUS_DOM","Almindelig Æble",null,"Yduns æble",null,"Approved","Officialy Recognised description",null,"Complete Application","Accepted",null,"Yduns æble",null,null,null,null,null,"N/A",null,null,null,"NO"]
["2017/DK/MALUS_DOM/ÆRØÆBLE/Ærøæble","DK","Malus","domestica","MALUS_DOM","Almindelig Æble",null,"Ærøæble",null,"Approved","Officialy Recognised description",null,"Complete Application","Accepted",null,"Ærøæble",null,null,null,null,null,"N/A",null,null,null,"NO"]
["2017/DK/MALUS_DOM/AABYÆBLE /Aabyæble ","DK","Malus","domestica","MALUS_DOM","Almindelig Æble",null,"Aabyæble ",null,"Approved","Officialy Recognised description",null,"Complete Application","Accepted",null,"Aabyæble ",null,null,null,null,null,"N/A",null,null,null,"NO"]
["2017/DK/MALUS_DOM/NYBØLLEGAARD/Nybøllegaard","DK","Malus","domestica","MALUS_DOM","Almindelig Æble",null,"Nybøllegaard",null,"Approved","Officialy Recognised description",null,"Complete Application","Accepted",null,"Nybøllegaard",null,null,null,null,null,"N/A",null,null,null,"NO"]
["2017/DK/MALUS_DOM/GULDBORG/Guldborg","DK","Malus","domestica","MALUS_DOM","Almindelig Æble",null,"Guldborg",null,"Approved","Officialy Recognised description",null,"Complete Application","Accepted",null,"Guldborg",null,null,null,null,null,"N/A",null,null,null,"NO"]

{"sheet":"Malus floribunda","index":1,"n_rows":13,"n_cols":27,"rows_kept":13,"cut":false,"hidden":false,"merged":[]}
["Variety Denomination"]
[]
[]
[]
["Unique identifier","Member States","Genus Name","Species Name","Species Code","Species Common name","Synonym common name","Variety Denomination","Synonym Variety Denomination","Variety Denomination Status","Description","Breeder Reference","Registration Application ","Application status","Kolonne1","MS reference 1","Kolonne2","Kolonne3","Kolonne4","Kolonne5","Kolonne6","Plant Variety Right","Kolonne7","Kolonne8","Kolonne9","Genetically Modified Variety","Breeder"]
[{"$f":"YEAR(NOW()) &  \"/\" &  B6 & \"/\" & E6 & \"/\" & IF(LEN(AF6) >0,UPPER(AF6),UPPER(H6)) & \"/\" & P6","v":"2017/DK/MALUS_FLO/ CHARLOTTA/ Charlotta"},"DK","Malus","floribunda","MALUS_FLO","Paradis æble",null," Charlotta",null,"Approved","Officialy Recognised description",null,"Complete Application","Accepted",null," Charlotta",null,null,null,null,null,"N/A",null,null,null,"NO"]
["2017/DK/MALUS_FLO/BRAENDKJÆR/Braendkjær","DK","Malus","floribunda","MALUS_FLO","Paradis æble",null,"Braendkjær",null,"Approved","Officialy Recognised description",null,"Complete Application","Accepted",null,"Braendkjær",null,null,null,null,null,"N/A",null,null,null,"NO"]
["2017/DK/MALUS_FLO/IRENE/Irene","DK","Malus","floribunda","MALUS_FLO","Paradis æble",null,"Irene",null,"Approved","Officialy Recognised description",null,"Complete Application","Accepted",null,"Irene",null,null,null,null,null,"N/A",null,null,null,"NO"]
["2017/DK/MALUS_FLO/LISET/Liset","DK","Malus","floribunda","MALUS_FLO","Paradis æble",null,"Liset",null,"Approved","Officialy Recognised description",null,"Complete Application","Accepted",null,"Liset",null,null,null,null,null,"N/A",null,null,null,"NO"]
["2017/DK/MALUS_FLO/MAKAMIK/Makamik","DK","Malus","floribunda","MALUS_FLO","Paradis æble",null,"Makamik",null,"Approved","Officialy Recognised description",null,"Complete Application","Accepted",null,"Makamik",null,null,null,null,null,"N/A",null,null,null,"NO"]
["2017/DK/MALUS_FLO/MARY POTTER/Mary Potter","DK","Malus","floribunda","MALUS_FLO","Paradis æble",null,"Mary Potter",null,"Approved","Officialy Recognised description",null,"Complete Application","Accepted",null,"Mary Potter",null,null,null,null,null,"N/A",null,null,null,"NO"]
["2017/DK/MALUS_FLO/MASYL/Masyl","DK","Malus","floribunda","MALUS_FLO","Paradis æble",null,"Masyl",null,"Approved","Officialy Recognised description",null,"Complete Application","Accepted",null,"Masyl",null,null,null,null,null,"N/A",null,null,null,"NO"]
["2017/DK/MALUS_FLO/RED FLESH/Red Flesh","DK","Malus","floribunda","MALUS_FLO","Paradis æble",null,"Red Flesh",null,"Approved","Officialy Recognised description",null,"Complete Application","Accepted",null,"Red Flesh",null,null,null,null,null,"N/A",null,null,null,"NO"]

{"sheet":"Pyrus communis","index":2,"n_rows":13,"n_cols":27,"rows_kept":13,"cut":false,"hidden":false,"merged":[]}
["Variety Denomination"]
[]
[]
[]
["Unique identifier","Member States","Genus Name","Species Name","Species Code","Species Common name","Synonym common name","Variety Denomination","Synonym Variety Denomination","Variety Denomination Status","Description","Breeder Reference","Registration Application ","Application status","Kolonne1","MS reference 1","Kolonne2","Kolonne3","Kolonne4","Kolonne5","Kolonne6","Plant Variety Right","Kolonne7","Kolonne8","Kolonne9","Genetically Modified Variety","Breeder"]
[{"$f":"YEAR(NOW()) &  \"/\" &  B6 & \"/\" & E6 & \"/\" & IF(LEN(AF6) >0,UPPER(AF6),UPPER(H6)) & \"/\" & P6","v":"2017/DK/PYRUS_COM/CLARA FRIJS/Clara Frijs"},"DK","Pyrus","communis L.","PYRUS_COM","Almindelig Pære",null,"Clara Frijs",null,"Approved","Officialy Recognised description",null,"Complete Application","Accepted",null,"Clara Frijs",null,null,null,null,null,"N/A",null,null,null,"NO"]
["2017/DK/PYRUS_COM/GREV MOLTKE/Grev Moltke","DK","Pyrus","communis L.","PYRUS_COM","Almindelig Pære",null,"Grev Moltke",null,"Approved","Officialy Recognised description",null,"Complete Application","Accepted",null,"Grev Moltke",null,null,null,null,null,"N/A",null,null,null,"NO"]
["2017/DK/PYRUS_COM/HASSELPÆRE/Hasselpære","DK","Pyrus","communis L.","PYRUS_COM","Almindelig Pære",null,"Hasselpære",null,"Approved","Officialy Recognised description",null,"Complete Application","Accepted",null,"Hasselpære",null,null,null,null,null,"N/A",null,null,null,"NO"]
["2017/DK/PYRUS_COM/LANGPÆRE FRA ÆRØ/Langpære fra Ærø","DK","Pyrus","communis L.","PYRUS_COM","Almindelig Pære",null,"Langpære fra Ærø",null,"Approved","Officialy Recognised description",null,"Complete Application","Accepted",null,"Langpære fra Ærø",null,null,null,null,null,"N/A",null,null,null,"NO"]
["2017/DK/PYRUS_COM/RØDE PÆRER - SAMSØ/Røde Pærer - Samsø","DK","Pyrus","communis L.","PYRUS_COM","Almindelig Pære",null,"Røde Pærer - Samsø",null,"Approved","Officialy Recognised description",null,"Complete Application","Accepted",null,"Røde Pærer - Samsø",null,null,null,null,null,"N/A",null,null,null,"NO"]
["2017/DK/PYRUS_COM/VORUPPÆRE/Voruppære","DK","Pyrus","communis L.","PYRUS_COM","Almindelig Pære",null,"Voruppære",null,"Approved","Officialy Recognised description",null,"Complete Application","Accepted",null,"Voruppære",null,null,null,null,null,"N/A",null,null,null,"NO"]
["2017/DK/PYRUS_COM/WOLLE FENS - SAMSØ/Wolle Fens - Samsø","DK","Pyrus","communis L.","PYRUS_COM","Almindelig Pære",null,"Wolle Fens - Samsø",null,"Approved","Officialy Recognised description",null,"Complete Application","Accepted",null,"Wolle Fens - Samsø",null,null,null,null,null,"N/A",null,null,null,"NO"]
["2017/DK/PYRUS_COM/ÆRKEBISKOP HONS/Ærkebiskop Hons","DK","Pyrus","communis L.","PYRUS_COM","Almindelig Pære",null,"Ærkebiskop Hons",null,"Approved","Officialy Recognised description",null,"Complete Application","Accepted",null,"Ærkebiskop Hons",null,null,null,null,null,"N/A",null,null,null,"NO"]

{"sheet":"Prunus domestica","index":3,"n_rows":9,"n_cols":27,"rows_kept":9,"cut":false,"hidden":false,"merged":[]}
["Variety Denomination"]
[]
[]
[]
["Unique identifier","Member States","Genus Name","Species Name","Species Code","Species Common name","Synonym common name","Variety Denomination","Synonym Variety Denomination","Variety Denomination Status","Description","Breeder Reference","Registration Application ","Application status","Kolonne1","MS reference 1","Kolonne2","Kolonne3","Kolonne4","Kolonne5","Kolonne6","Plant Variety Right","Kolonne7","Kolonne8","Kolonne9","Genetically Modified Variety","Breeder"]
[{"$f":"YEAR(NOW()) &  \"/\" &  B6 & \"/\" & E6 & \"/\" & IF(LEN(AF6) >0,UPPER(AF6),UPPER(H6)) & \"/\" & P6","v":"2017/DK/PRUNU DOM/BLÅ HERREBLOMME/Blå Herreblomme"},"DK","Prunus","domestica L.","PRUNU DOM","Blomme",null,"Blå Herreblomme",null,"Approved","Officialy Recognised description",null,"Complete Application","Accepted",null,"Blå Herreblomme",null,null,null,null,null,"N/A",null,null,null,"NO"]
[{"$f":"YEAR(NOW()) &  \"/\" &  B7 & \"/\" & E7 & \"/\" & IF(LEN(AF7) >0,UPPER(AF7),UPPER(H7)) & \"/\" & P7","v":"2017/DK/PRUNU DOM/GUL HAVREBLOMME (KRÆGE)/Gul Havreblomme (Kræge)"},"DK","Prunus","domestica L.","PRUNU DOM","Blomme",null,"Gul Havreblomme (Kræge)",null,"Approved","Officialy Recognised description",null,"Complete Application","Accepted",null,"Gul Havreblomme (Kræge)",null,null,null,null,null,"N/A",null,null,null,"NO"]
[{"$f":"YEAR(NOW()) &  \"/\" &  B8 & \"/\" & E8 & \"/\" & IF(LEN(AF8) >0,UPPER(AF8),UPPER(H8)) & \"/\" & P8","v":"2017/DK/PRUNU DOM/KONGEBLOMME/Kongeblomme"},"DK","Prunus","domestica L.","PRUNU DOM","Blomme",null,"Kongeblomme",null,"Approved","Officialy Recognised description",null,"Complete Application","Accepted",null,"Kongeblomme",null,null,null,null,null,"N/A",null,null,null,"NO"]
[{"$f":"YEAR(NOW()) &  \"/\" &  B9 & \"/\" & E9 & \"/\" & IF(LEN(AF9) >0,UPPER(AF9),UPPER(H9)) & \"/\" & P9","v":"2017/DK/PRUNU DOM/ROSINBLOMME/Rosinblomme"},"DK","Prunus","domestica L.","PRUNU DOM","Blomme",null,"Rosinblomme",null,"Approved","Officialy Recognised description",null,"Complete Application","Accepted",null,"Rosinblomme",null,null,null,null,null,"N/A",null,null,null,"NO"]

{"sheet":"Prunus cerasus","index":4,"n_rows":8,"n_cols":27,"rows_kept":8,"cut":false,"hidden":false,"merged":[]}
["Variety Denomination"]
[]
[]
[]
["Unique identifier","Member States","Genus Name","Species Name","Species Code","Species Common name","Synonym common name","Variety Denomination","Synonym Variety Denomination","Variety Denomination Status","Description","Breeder Reference","Registration Application ","Application status","Kolonne1","MS reference 1","Kolonne2","Kolonne3","Kolonne4","Kolonne5","Kolonne6","Plant Variety Right","Kolonne7","Kolonne8","Kolonne9","Genetically Modified Variety","Breeder"]
[{"$f":"YEAR(NOW()) &  \"/\" &  B6 & \"/\" & E6 & \"/\" & IF(LEN(AF6) >0,UPPER(AF6),UPPER(H6)) & \"/\" & P6","v":"2017/DK/PRUNU CSS/KELLERIIS 16 /Kelleriis 16 "},"DK","Prunus","cerasus L.","PRUNU CSS","Surkirsebær",null,"Kelleriis 16 ",null,"Approved","Officialy Recognised description",null,"Complete Application","Accepted",null,"Kelleriis 16 ",null,null,null,null,null,"N/A",null,null,null,"NO"]
[{"$f":"YEAR(NOW()) &  \"/\" &  B7 & \"/\" & E7 & \"/\" & IF(LEN(AF7) >0,UPPER(AF7),UPPER(H7)) & \"/\" & P7","v":"2017/DK/PRUNU CSS/STEVNSBÆR/Stevnsbær"},"DK","Prunus","cerasus L.","PRUNU CSS","Surkirsebær",null,"Stevnsbær",null,"Approved","Officialy Recognised description",null,"Complete Application","Accepted",null,"Stevnsbær",null,null,null,null,null,"N/A",null,null,null,"NO"]
["2017/DK/PRUNU CSS/TIKI  /Tiki  ","DK","Prunus","cerasus L.","PRUNU CSS","Surkirsebær",null,"Tiki  ",null,"Approved","Officialy Recognised description",null,"Complete Application","Accepted",null,"Tiki  ",null,null,null,null,null,"N/A",null,null,null,"NO"]

{"sheet":"Castanea sativa","index":5,"n_rows":10,"n_cols":27,"rows_kept":10,"cut":false,"hidden":false,"merged":[]}
["Variety Denomination"]
[]
[]
[]
["Unique identifier","Member States","Genus Name","Species Name","Species Code","Species Common name","Synonym common name","Variety Denomination","Synonym Variety Denomination","Variety Denomination Status","Description","Breeder Reference","Registration Application ","Application status","Kolonne1","MS reference 1","Kolonne2","Kolonne3","Kolonne4","Kolonne5","Kolonne6","Plant Variety Right","Kolonne7","Kolonne8","Kolonne9","Genetically Modified Variety","Breeder"]
[{"$f":"YEAR(NOW()) &  \"/\" &  B6 & \"/\" & E6 & \"/\" & IF(LEN(AF6) >0,UPPER(AF6),UPPER(H6)) & \"/\" & P6","v":"2017/DK/CASTA_SAT/GENTOFTEKASTANJEN (39)/Gentoftekastanjen (39)"},"DK","Castanea","Castanea sativa Mill.","CASTA_SAT","Ægte Kastaje",null,"Gentoftekastanjen (39)",null,"Approved","Officialy Recognised description",null,"Complete Application","Accepted",null,"Gentoftekastanjen (39)",null,null,null,null,null,"N/A",null,null,null,"NO"]
["2017/DK/CASTA_SAT/HAVREMARKENS KASTANJE (49)/Havremarkens kastanje (49)","DK","Castanea","Castanea sativa Mill.","CASTA_SAT","Ægte Kastaje",null,"Havremarkens kastanje (49)",null,"Approved","Officialy Recognised description",null,"Complete Application","Accepted",null,"Havremarkens kastanje (49)",null,null,null,null,null,"N/A",null,null,null,"NO"]
["2017/DK/CASTA_SAT/LYNGBY KASTANJEN (13)/Lyngby Kastanjen (13)","DK","Castanea","Castanea sativa Mill.","CASTA_SAT","Ægte Kastaje",null,"Lyngby Kastanjen (13)",null,"Approved","Officialy Recognised description",null,"Complete Application","Accepted",null,"Lyngby Kastanjen (13)",null,null,null,null,null,"N/A",null,null,null,"NO"]
["2017/DK/CASTA_SAT/MOSSØ KASTANJEN (47)/Mossø kastanjen (47)","DK","Castanea","Castanea sativa Mill.","CASTA_SAT","Ægte Kastaje",null,"Mossø kastanjen (47)",null,"Approved","Officialy Recognised description",null,"Complete Application","Accepted",null,"Mossø kastanjen (47)",null,null,null,null,null,"N/A",null,null,null,"NO"]
["2017/DK/CASTA_SAT/NÆSTVED KASTANIEN/næstved kastanien","DK","Castanea","Castanea sativa Mill.","CASTA_SAT","Ægte Kastaje",null,"næstved kastanien",null,"Approved","Officialy Recognised description",null,"Complete Application","Accepted",null,"næstved kastanien",null,null,null,null,null,"N/A",null,null,null,"NO"]

{"sheet":"Juglans regia","index":6,"n_rows":20,"n_cols":27,"rows_kept":20,"cut":false,"hidden":false,"merged":[]}
["Variety Denomination"]
[]
[]
[]
["Unique identifier","Member States","Genus Name","Species Name","Species Code","Species Common name","Synonym common name","Variety Denomination","Synonym Variety Denomination","Variety Denomination Status","Description","Breeder Reference","Registration Application ","Application status","Kolonne1","MS reference 1","Kolonne2","Kolonne3","Kolonne4","Kolonne5","Kolonne6","Plant Variety Right","Kolonne7","Kolonne8","Kolonne9","Genetically Modified Variety","Breeder"]
[{"$f":"YEAR(NOW()) &  \"/\" &  B6 & \"/\" & E6 & \"/\" & IF(LEN(AF6) >0,UPPER(AF6),UPPER(H6)) & \"/\" & P6","v":"2017/DK/JUGLA_REG/ZUSHA/ZUSHA"},"DK","Juglans","regia","JUGLA_REG","Almindelig Valnød",null,"ZUSHA",null,"Approved","Officialy Recognised description",null,"Complete Application","Accepted",null,"ZUSHA",null,null,null,null,null,"N/A",null,null,null,"NO"]
["2017/DK/JUGLA_REG/APPENÆS/Appenæs","DK","Juglans","regia","JUGLA_REG","Almindelig Valnød",null,"Appenæs",null,"Approved","Officialy Recognised description",null,"Complete Application","Accepted",null,"Appenæs",null,null,null,null,null,"N/A",null,null,null,"NO"]
["2017/DK/JUGLA_REG/BRØNSHØJ/Brønshøj","DK","Juglans","regia","JUGLA_REG","Almindelig Valnød",null,"Brønshøj",null,"Approved","Officialy Recognised description",null,"Complete Application","Accepted",null,"Brønshøj",null,null,null,null,null,"N/A",null,null,null,"NO"]
["2017/DK/JUGLA_REG/BÆK/Bæk","DK","Juglans","regia","JUGLA_REG","Almindelig Valnød",null,"Bæk",null,"Approved","Officialy Recognised description",null,"Complete Application","Accepted",null,"Bæk",null,null,null,null,null,"N/A",null,null,null,"NO"]
["2017/DK/JUGLA_REG/DRAGØR/Dragør","DK","Juglans","regia","JUGLA_REG","Almindelig Valnød",null,"Dragør",null,"Approved","Officialy Recognised description",null,"Complete Application","Accepted",null,"Dragør",null,null,null,null,null,"N/A",null,null,null,"NO"]
["2017/DK/JUGLA_REG/HAVREBJERG/Havrebjerg","DK","Juglans","regia","JUGLA_REG","Almindelig Valnød",null,"Havrebjerg",null,"Approved","Officialy Recognised description",null,"Complete Application","Accepted",null,"Havrebjerg",null,null,null,null,null,"N/A",null,null,null,"NO"]
["2017/DK/JUGLA_REG/HERLEV/Herlev","DK","Juglans","regia","JUGLA_REG","Almindelig Valnød",null,"Herlev",null,"Approved","Officialy Recognised description",null,"Complete Application","Accepted",null,"Herlev",null,null,null,null,null,"N/A",null,null,null,"NO"]
["2017/DK/JUGLA_REG/KISSENDRUP/Kissendrup","DK","Juglans","regia","JUGLA_REG","Almindelig Valnød",null,"Kissendrup",null,"Approved","Officialy Recognised description",null,"Complete Application","Accepted",null,"Kissendrup",null,null,null,null,null,"N/A",null,null,null,"NO"]
["2017/DK/JUGLA_REG/RAGEBØL/Ragebøl","DK","Juglans","regia","JUGLA_REG","Almindelig Valnød",null,"Ragebøl",null,"Approved","Officialy Recognised description",null,"Complete Application","Accepted",null,"Ragebøl",null,null,null,null,null,"N/A",null,null,null,"NO"]
["2017/DK/JUGLA_REG/SKIBBY/Skibby","DK","Juglans","regia","JUGLA_REG","Almindelig Valnød",null,"Skibby",null,"Approved","Officialy Recognised description",null,"Complete Application","Accepted",null,"Skibby",null,null,null,null,null,"N/A",null,null,null,"NO"]
["2017/DK/JUGLA_REG/ØNSLEV/Ønslev","DK","Juglans","regia","JUGLA_REG","Almindelig Valnød",null,"Ønslev",null,"Approved","Officialy Recognised description",null,"Complete Application","Accepted",null,"Ønslev",null,null,null,null,null,"N/A",null,null,null,"NO"]
["2017/DK/JUGLA_REG/ØSBY/Øsby","DK","Juglans","regia","JUGLA_REG","Almindelig Valnød",null,"Øsby",null,"Approved","Officialy Recognised description",null,"Complete Application","Accepted",null,"Øsby",null,null,null,null,null,"N/A",null,null,null,"NO"]
["2017/DK/JUGLA_REG/GRØNDAL/Grøndal","DK","Juglans","regia","JUGLA_REG","Almindelig Valnød",null,"Grøndal",null,"Approved","Officialy Recognised description",null,"Complete Application","Accepted",null,"Grøndal",null,null,null,null,null,"N/A",null,null,null,"NO"]
["2017/DK/JUGLA_REG/KAPPELS KÆMPE/Kappels Kæmpe","DK","Juglans","regia","JUGLA_REG","Almindelig Valnød",null,"Kappels Kæmpe",null,"Approved","Officialy Recognised description",null,"Complete Application","Accepted",null,"Kappels Kæmpe",null,null,null,null,null,"N/A",null,null,null,"NO"]
["2017/DK/JUGLA_REG/FEJØVALNØD/Fejøvalnød","DK","Juglans","regia","JUGLA_REG","Almindelig Valnød",null,"Fejøvalnød",null,"Approved","Officialy Recognised description",null,"Complete Application","Accepted",null,"Fejøvalnød",null,null,null,null,null,"N/A",null,null,null,"NO"]

{"sheet":"Fragaria ananassa","index":7,"n_rows":8,"n_cols":27,"rows_kept":8,"cut":false,"hidden":false,"merged":[]}
["Variety Denomination"]
[]
[]
[]
["Unique identifier","Member States","Genus Name","Species Name","Species Code","Species Common name","Synonym common name","Variety Denomination","Synonym Variety Denomination","Variety Denomination Status","Description","Breeder Reference","Registration Application ","Application status","Kolonne1","MS reference 1","Kolonne2","Kolonne3","Kolonne4","Kolonne5","Kolonne6","Plant Variety Right","Kolonne7","Kolonne8","Kolonne9","Genetically Modified Variety","Breeder"]
[{"$f":"YEAR(NOW()) &  \"/\" &  B6 & \"/\" & E6 & \"/\" & IF(LEN(AF6) >0,UPPER(AF6),UPPER(H6)) & \"/\" & P6","v":"2017/DK/FRAGA_ANA/DANIA/Dania"},"DK","Fragaria","ananassa Duch.","FRAGA_ANA","Havejordbær",null,"Dania",null,"Approved","Officialy Recognised description",null,"Complete Application","Accepted",null,"Dania",null,null,null,null,null,"N/A",null,null,null,"NO"]
["2017/DK/FRAGA_ANA/DYBDAHL/Dybdahl","DK","Fragaria","ananassa Duch.","FRAGA_ANA","Havejordbær",null,"Dybdahl",null,"Approved","Officialy Recognised description",null,"Complete Application","Accepted",null,"Dybdahl",null,null,null,null,null,"N/A",null,null,null,"NO"]
["2017/DK/FRAGA_ANA/ZEPHYR/Zephyr","DK","Fragaria","ananassa Duch.","FRAGA_ANA","Havejordbær",null,"Zephyr",null,"Approved","Officialy Recognised description",null,"Complete Application","Accepted",null,"Zephyr",null,null,null,null,null,"N/A",null,null,null,"NO"]

{"sheet":"Ribes sp.","index":8,"n_rows":10,"n_cols":27,"rows_kept":10,"cut":false,"hidden":false,"merged":[]}
["Variety Denomination"]
[]
[]
[]
["Unique identifier","Member States","Genus Name","Species Name","Species Code","Species Common name","Synonym common name","Variety Denomination","Synonym Variety Denomination","Variety Denomination Status","Description","Breeder Reference","Registration Application ","Application status","Kolonne1","MS reference 1","Kolonne2","Kolonne3","Kolonne4","Kolonne5","Kolonne6","Plant Variety Right","Kolonne7","Kolonne8","Kolonne9","Genetically Modified Variety","Breeder"]
[{"$f":"YEAR(NOW()) &  \"/\" &  B6 & \"/\" & E6 & \"/\" & IF(LEN(AF6) >0,UPPER(AF6),UPPER(H6)) & \"/\" & P6","v":"2017/DK/RIBES_UVA/KLOSTERVALNØD/Klostervalnød"},"DK","Ribes","uva-crispa L.","RIBES_UVA","Stikkelsbær",null,"Klostervalnød",null,"Approved","Officialy Recognised description",null,"Complete Application","Accepted",null,"Klostervalnød",null,null,null,null,null,"N/A",null,null,null,"NO"]
["2017/DK/RIBES_UVA/SMÅFRUGTET FRA BLÅVAND/Småfrugtet fra Blåvand","DK","Ribes","uva-crispa L.","RIBES_UVA","Stikkelsbær",null,"Småfrugtet fra Blåvand",null,"Approved","Officialy Recognised description",null,"Complete Application","Accepted",null,"Småfrugtet fra Blåvand",null,null,null,null,null,"N/A",null,null,null,"NO"]
["2017/DK/RIBES_UVA/BLANGSTEDGÅRD GRØN/Blangstedgård Grøn","DK","Ribes","uva-crispa L.","RIBES_UVA","Stikkelsbær",null,"Blangstedgård Grøn",null,"Approved","Officialy Recognised description",null,"Complete Application","Accepted",null,"Blangstedgård Grøn",null,null,null,null,null,"N/A",null,null,null,"NO"]
["2017/DK/RIBES/PERLERIBS/Perleribs","DK","Ribes","Ribes L.","RIBES","Ribs",null,"Perleribs",null,"Approved","Officialy Recognised description",null,"Complete Application","Accepted",null,"Perleribs",null,null,null,null,null,"N/A",null,null,null,"NO"]
["2017/DK/RIBES/RIBS FRA KRABBESHOLM/Ribs fra Krabbesholm","DK","Ribes","Ribes L.","RIBES","Ribs",null,"Ribs fra Krabbesholm",null,"Approved","Officialy Recognised description",null,"Complete Application","Accepted",null,"Ribs fra Krabbesholm",null,null,null,null,null,"N/A",null,null,null,"NO"]